Cogmind - Beta 13 @@@ ROGUE MODE // 2024.04.06 @ 13:43:52 Player: pcakes Result: Destroyed by S-27 Virus with Autogun Performance ------------- Evolutions (1) 500 Regions Visited (5) 1000 Robots Destroyed (52) 260 Value Destroyed (1345) 1345 Prototype IDs (4) 80 Alien Tech Used (0) 0 Bonus (41) 41 TOTAL SCORE: 3226 Bonus ------- High Alert Combat Kills 41 Cogmind --------- Core Integrity 0/400 Matter 294/300 Energy 240/240 System Corruption 0% Temperature Cool (33) Movement Walking (190) Ox1 Location -6/Proximity Caves Parts ------- > --- POWER (2) -------- Nuclear Core > --- PROPULSION (2) --- Improved Aluminum Leg Flexi-carbon Leg > --- UTILITY (2) ------ Large Storage Unit Hacking Drone Bay (1/1) > --- WEAPON (3) ------- Particle Cannon Gauss Cannon Rocket Launcher > --- INVENTORY (15) --- Aluminum Leg Aluminum Leg Aluminum Leg Improved Heat Sink Disposable Heat Sink Experimental Sensor Array Particle Charger ECM Suite Hardlight Generator Hacking Suite Field Recycling Unit (0) Light Assault Rifle Datajack Peak State ------------ > --- POWER ------------ Nuclear Core > --- PROPULSION ------- Improved Aluminum Leg Flexi-carbon Leg > --- UTILITY ---------- Large Storage Unit Hacking Drone Bay > --- WEAPON ----------- Particle Cannon Gauss Cannon Rocket Launcher > --- INVENTORY -------- Aluminum Leg Aluminum Leg Aluminum Leg Improved Heat Sink Disposable Heat Sink Experimental Sensor Array Particle Charger ECM Suite Improved Medium Armor Plating Hardlight Generator Hacking Suite Field Recycling Unit Thermic Laser Light Assault Rifle Datajack [Rating: 32] Favorites ----------- Power Nuclear Core Engine Ion Engine Power Core Nuclear Core Propulsion Aluminum Leg Treads Medium Treads Leg Aluminum Leg Wheel Wheel Flight Unit Flight Unit Utility Large Storage Unit Device Improved Heat Sink Storage Large Storage Unit Processor Signal Interpreter Weapon Particle Cannon Energy Gun Medium Laser Energy Cannon Particle Cannon Ballistic Gun Light Assault Rifle Ballistic Cannon Light Cannon Launcher Rocket Launcher Impact Weapon Hammer Build | -11 -10 -9 -9 -7 -6 ------- Run | Yrd Mat Mat Min Zio Pro Slots Evolved 2 | . . 2 . . . Power 1 | . . 1 . . . Propulsion . | . . . . . . Utility . | . . . . . . Weapon 1 | . . 1 . . . Parts Attached 50 | 8 17 16 3 5 1 Power 7 | 1 1 5 . . . Engine 4 | 1 . 3 . . . Core 3 | . 1 2 . . . Reactor . | . . . . . . Propulsion 15 | 4 4 2 2 2 1 Treads 1 | . . . . 1 . Leg 10 | 2 2 2 2 1 1 Wheel 2 | 2 . . . . . Hover . | . . . . . . Flight 2 | . 2 . . . . Utility 10 | 1 6 1 . 2 . Device 8 | 1 4 1 . 2 . Storage 1 | . 1 . . . . Processor 1 | . 1 . . . . Hackware . | . . . . . . Protection . | . . . . . . Artifact . | . . . . . . Weapon 18 | 2 6 8 1 1 . Energy Gun 3 | 2 1 . . . . Energy Cannon 1 | . . 1 . . . Ballistic Gun 8 | . 2 6 . . . Ballistic Cannon 3 | . 1 1 . 1 . Launcher 2 | . 1 . 1 . . Special Weapon . | . . . . . . Impact Weapon 1 | . 1 . . . . Slashing Weapon . | . . . . . . Piercing Weapon . | . . . . . . Special Melee Weapon . | . . . . . . Unidentified Prototypes 2 | . . . . 2 . Parts Lost 10 | . . 9 1 . . Power 3 | . . 3 . . . Propulsion 2 | . . 2 . . . Utility . | . . . . . . Weapon 5 | . . 4 1 . . Highest Loss Streak 5 | . . 5 1 . . To Critical Strikes . | . . . . . . Average Slot Usage (%) 86 | . 99 78 82 88 88 Engine 2 | . 5 5 . . . Core 10 | . 8 9 11 11 11 Leg 17 | . 16 11 20 22 22 Wheel 1 | . 6 . . . . Device 11 | . 15 10 11 11 11 Storage 10 | . 7 11 11 11 11 Processor 1 | . 5 . . . . Energy Gun 1 | . 9 . . . . Energy Cannon 6 | . . 4 11 11 11 Ballistic Gun 9 | . 6 20 11 2 . Ballistic Cannon 7 | . 9 6 1 8 11 Launcher 5 | . 2 . 6 11 11 Naked Turns . | . . . . . . Heaviest Build 43 | 8 31 42 37 43 43 Greatest Support 33 | 20 20 20 23 23 33 Greatest Overweight (x) 13 | . 1 13 3 1 1 Average Overweight (x) 1 | . . 2 1 1 1 Largest Inventory Capacity 15 | 5 15 15 15 15 15 Average Capacity 13 | 5 10 15 15 15 15 Most Carried 15 | 5 8 12 8 13 15 Average Carried 7 | 2 5 6 6 10 13 Final Capacity 15 | 5 15 15 15 15 15 Final Carried 13 | 4 8 4 8 13 13 Class Distribution -------------------- 50% | Gunner 18% | Scavenger-Mutant 18% | Skirmisher 11% | Mutant Dominant Class ---------------- Scavenger-Mutant | -10/Materials Gunner | -9/Materials Gunner | -9/Mines Skirmisher | -7/Zion Gunner | -6/Proximity Caves Resources | -11 -10 -9 -9 -7 -6 ----------- Run | Yrd Mat Mat Min Zio Pro Matter Collected 1159 | 270 265 507 47 60 10 Remotely . | . . . . . . Salvage Created 1464 | 47 329 952 121 . 15 Parts 106 | 3 37 55 9 . 2 Haulers Intercepted 1 | . . 1 . . . Recyclers Shooed . | . . . . . . Parts Field Recycled . | . . . . . . Retrieved Matter . | . . . . . . Parts Self-Destructed . | . . . . . . Prevented . | . . . . . . Kills | -11 -10 -9 -9 -7 -6 ------- Run | Yrd Mat Mat Min Zio Pro Combat Hostiles Destroyed 36 | 1 11 20 3 . 1 Guns 23 | 1 5 17 . . . Cannons 8 | . 1 3 3 . 1 AOE 5 | . 5 . . . . Classes Destroyed 9 | 1 3 5 . . . Worker 2 | . . 2 . . . Builder 7 | . 6 1 . . . Hauler 1 | . . 1 . . . Recycler 2 | . . 2 . . . Watcher 4 | . 2 2 . . . Swarmer 10 | . 6 3 . . 1 Grunt 23 | 1 5 15 2 . . Duelist 2 | . . 1 1 . . Sentry 1 | . . 1 . . . Best Kill Streak 12 | 1 10 12 3 . 1 Combat Bots Only 8 | 1 8 5 3 . 1 Max Kills in Single Turn 4 | 1 4 4 1 . 1 Gunslinging . | . . . . . . Exploded 3 | . 3 . . . . Melee . | . . . . . . Uniques/NPCs Destroyed . | . . . . . . Combat | -11 -10 -9 -9 -7 -6 -------- Run | Yrd Mat Mat Min Zio Pro Hostile Shots Fired 208 | 4 45 141 8 . 10 Missed 59 | 3 15 36 3 . 2 Damage Taken 1911 | 10 346 1359 76 . 120 Core 523 | . 110 399 . . 14 Absorbed by Shields . | . . . . . . Regen/Repaired (Parts) 35 | . . 35 . . . Core Remaining (%) 78 | 100 56 . . . . Volleys Fired 125 | 3 40 75 6 . 1 Largest 3 | 2 2 3 3 . 2 Hottest 123 | 90 90 66 123 . 116 Shots Fired 252 | 6 58 170 16 . 2 Gun 203 | 6 45 146 6 . . Cannon 40 | . 4 24 10 . 2 Launcher 9 | . 9 . . . . Special . | . . . . . . Kinetic 185 | . 4 170 10 . 1 Thermal 55 | 3 45 . 6 . 1 Explosive 9 | . 9 . . . . Electromagnetic 3 | 3 . . . . . Robot Hit Streak 11 | 2 10 11 4 . 1 Robot Miss Streak 5 | 2 4 4 5 . 1 Penetration Max . | . . . . . . Secondary Targets 2 | . . 2 . . . Max Gunslinging Chain 1 | . . 1 . . . Shots Hit Robots 123 | 3 28 84 7 . 1 Core Hits 79 | 2 26 45 5 . 1 Critical Kills 1 | . . 1 . . . Critical Parts Destroyed 1 | . . 1 . . . Critical Strikes 2 | . . 2 . . . Destroy 2 | . . 2 . . . Melee Attacks 4 | . 4 . . . . Impact 4 | . 4 . . . . Slashing . | . . . . . . Piercing . | . . . . . . Sneak Attacks . | . . . . . . Combat Hostiles . | . . . . . . Follow-up Attacks . | . . . . . . Damage Inflicted 2970 | 39 938 1854 112 . 27 Guns 1250 | 39 270 928 13 . . Cannons 391 | . 55 210 99 . 27 Explosions 1254 | . 538 716 . . . Melee 71 | . 71 . . . . Ramming 4 | . 4 . . . . Kinetic 1270 | . 55 1138 50 . 27 Thermal 1060 | 12 270 716 62 . . Explosive 538 | . 538 . . . . Electromagnetic 27 | 27 . . . . . Impact 71 | . 71 . . . . Slashing . | . . . . . . Piercing . | . . . . . . Highest Corruption 2 | . 2 . . . . Average Corruption 2 | . 2 . . . . Corruption Purged . | . . . . . . Corruption Blocked . | . . . . . . Overload Shots . | . . . . . . Overflow Damage 112 | . 9 103 . . . Projectiles . | . . . . . . Explosions 112 | . 9 103 . . . Melee . | . . . . . . Knockbacks 5 | . 1 3 1 . . Impact . | . . . . . . Kinetic 5 | . 1 3 1 . . Secondary . | . . . . . . Self-Inflicted Damage 117 | . 43 74 . . . Shots 3 | . 2 1 . . . Rammed . | . . . . . . Targets Rammed 1 | . 1 . . . . Kicked 1 | . 1 . . . . Crushed . | . . . . . . Highest Temperature 269 | 96 269 19 114 . 51 Average Temperature 67 | 52 75 8 58 . 33 Received Heat Transfer 801 | 6 111 660 24 . . Siege Activations . | . . . . . . Robots Corrupted . | . . . . . . Combat Hostiles . | . . . . . . Parts Fried . | . . . . . . Impact Corruptions . | . . . . . . Robots Melted . | . . . . . . Combat Hostiles . | . . . . . . Parts Melted 1 | . 1 . . . . Heat Transferred 1376 | 37 778 450 111 . . Parts Sabotaged . | . . . . . . Parts Stolen . | . . . . . . Parts Stripped . | . . . . . . Power Chain Reactions . | . . . . . . Alert | -11 -10 -9 -9 -7 -6 ------- Run | Yrd Mat Mat Min Zio Pro Peak Influence 506 | 20 397 506 145 . . Initial 85 | . 13 32 85 . . Average 258 | 4 192 335 138 . . Maximum Alert Level 2 | . 1 2 . . . Low Security (%) 34 | 100 47 11 100 . . Level 1 46 | . 52 54 . . . Level 2 19 | . . 34 . . . Level 3 . | . . . . . . Level 4 . | . . . . . . Level 5 . | . . . . . . High Security . | . . . . . . Max Security . | . . . . . . Squads Dispatched 4 | . 1 3 . . . Investigation 1 | . 1 . . . . Extermination . | . . . . . . Reinforcement 3 | . . 3 . . . Assault . | . . . . . . Garrison . | . . . . . . Intercept . | . . . . . . Searches Triggered . | . . . . . . Construction Impeded . | . . . . . . Haulers Reinforced . | . . . . . . Active Scanning Responses . | . . . . . . Cargo Convoy Interrupts . | . . . . . . Stealth | -11 -10 -9 -9 -7 -6 --------- Run | Yrd Mat Mat Min Zio Pro Distress Signals 3 | . 1 2 . . . Communications Jammed . | . . . . . . Distress Signals . | . . . . . . Times Spotted 56 | 1 20 28 3 . 4 Peak Tracking Total 5 | 1 4 5 3 . 4 Tactical Retreats 1 | . 1 . . . . Traps | -11 -10 -9 -9 -7 -6 ------- Run | Yrd Mat Mat Min Zio Pro Traps Triggered 3 | . 2 1 . . . Indirectly . | . . . . . . Trap Hack Attempts . | . . . . . . Triggered . | . . . . . . Disarmed . | . . . . . . Reprogrammed . | . . . . . . Reused . | . . . . . . Traps Extracted . | . . . . . . Installed . | . . . . . . Triggered . | . . . . . . Machines | -11 -10 -9 -9 -7 -6 ---------- Run | Yrd Mat Mat Min Zio Pro Machines Disabled 15 | . . 15 . . . Max in Single Turn 12 | . . 12 . . . Machines Repaired . | . . . . . . Machines Dismantled . | . . . . . . Machines Sabotaged . | . . . . . . Overloaded Fab Kills . | . . . . . . Hacking | -11 -10 -9 -9 -7 -6 --------- Run | Yrd Mat Mat Min Zio Pro Machines Accessed 6 | . 4 1 . 1 . Terminals 2 | . 2 . . . . Fabricators . | . . . . . . Repair Stations 2 | . 1 1 . . . Recycling Units 1 | . 1 . . . . Scanalyzers . | . . . . . . Garrison Access . | . . . . . . Total Hacks 18 | . 7 5 . 6 . Successful 12 | . 4 2 . 6 . Failed 6 | . 3 3 . . . Catastrophic 1 | . . 1 . . . Database Lockouts . | . . . . . . Manual 5 | . . . . 5 . Terminals 3 | . 3 . . . . Fabricators . | . . . . . . Repair Stations 7 | . 2 5 . . . Recycling Units 2 | . 2 . . . . Scanalyzers . | . . . . . . Garrison Access . | . . . . . . Terminal Hacks 8 | . 2 . . 6 . Part Schematic 6 | . . . . 6 . Prototype ID Bank 1 | . 1 . . . . Alert Level 1 | . 1 . . . . Fabricator Hacks . | . . . . . . Repair Station Hacks 3 | . 1 2 . . . Scan Component 2 | . 1 1 . . . Repair 1 | . . 1 . . . Recycling Unit Hacks 1 | . 1 . . . . Report Inventory 1 | . 1 . . . . Scanalyzer . | . . . . . . Garrison Access Hacks . | . . . . . . Unauthorized Hacks . | . . . . . . Terminals . | . . . . . . Fabricators . | . . . . . . Repair Stations . | . . . . . . Recycling Units . | . . . . . . Scanalyzers . | . . . . . . Garrison Access . | . . . . . . Data Cores Recovered . | . . . . . . Used . | . . . . . . Hacking Detections 4 | . 3 1 . . . Full Trace Events 1 | . . 1 . . . Feedback Events . | . . . . . . Feedback Blocked . | . . . . . . Robot Schematics Acquired . | . . . . . . Robots Built . | . . . . . . Authchips . | . . . . . . Time . | . . . . . . Total Robot Build Rating . | . . . . . . Part Schematics Acquired 6 | . . . . 6 . Parts Built . | . . . . . . Authchips . | . . . . . . Time . | . . . . . . Total Part Build Rating . | . . . . . . Parts Repaired 1 | . . 1 . . . Time 38 | . . 38 . . . Parts Recycled . | . . . . . . Recycled Matter . | . . . . . . Retrieved Matter . | . . . . . . Retrieved Components . | . . . . . . Parts Scanalyzed . | . . . . . . Part Schematics Acquired . | . . . . . . Parts Damaged . | . . . . . . Bothacking | -11 -10 -9 -9 -7 -6 ------------ Run | Yrd Mat Mat Min Zio Pro Used RIF Installer . | . . . . . . Robots Hacked . | . . . . . . Non-combat . | . . . . . . Combat . | . . . . . . Robot Hacks Applied . | . . . . . . Relay Couplers Released . | . . . . . . Fabnet Peak Effective % . | . . . . . . Robots Rewired . | . . . . . . Allies Hacked . | . . . . . . Hacks Repelled . | . . . . . . Allies | -11 -10 -9 -9 -7 -6 -------- Run | Yrd Mat Mat Min Zio Pro Total Allies 3 | . . . 3 . . Largest Group 3 | . . . 3 3 3 Highest-Rated Group 40 | . . . 40 40 40 Highest-Rated Ally 16 | . . . 16 16 16 Total Orders . | . . . . . . Ally Attacks . | . . . . . . Total Damage . | . . . . . . Kills . | . . . . . . Allies Corrupted . | . . . . . . Allies Melted . | . . . . . . Intel | -11 -10 -9 -9 -7 -6 ------- Run | Yrd Mat Mat Min Zio Pro Robot Analysis Total . | . . . . . . Derelict Logs Recovered 1 | . . . 1 . . Drone Launches . | . . . . . . Drone Recoveries . | . . . . . . Exploration | -11 -10 -9 -9 -7 -6 ------------- Run | Yrd Mat Mat Min Zio Pro Turns Passed 4901 | 104 959 1670 309 1712 147 Spaces Moved 2386 | 92 746 446 139 890 73 Core 34 | 23 . 11 . . . Treads . | . . . . . . Legs 1854 | 5 312 435 139 890 73 Wheels 224 | 64 160 . . . . Hover . | . . . . . . Flight 274 | . 274 . . . . Fastest Speed 37 | 50 37 190 190 190 190 Average Speed 183 | 74 104 318 198 190 190 Slowest Speed 700 | 120 190 700 330 190 190 Overloaded Moves . | . . . . . . Propulsion Burnouts . | . . . . . . Robots Hopped . | . . . . . . Cave-ins Triggered . | . . . . . . Exploration Rate (%) 43 | 6 92 36 39 78 11 Regions Visited 5 Branch Regions 3 Pre-discovered Areas 1 | . . . 1 . . Known Exits Taken . | . . . . . . Unknown Exits Taken 5 | 1 1 1 1 1 . Scrap Searched 5 | . . . . 4 1 Spaces Dug . | . . . . . . Terrain Destroyed 85 | . 51 34 . . . Melee . | . . . . . . Projectile . | . . . . . . AOE 85 | . 51 34 . . . Terrain Rammed . | . . . . . . Walls Destroyed . | . . . . . . Machines Disabled . | . . . . . . Actions | -11 -10 -9 -9 -7 -6 --------- Run | Yrd Mat Mat Min Zio Pro Total 2703 | 120 867 564 161 910 81 Wait 53 | 8 20 12 8 5 . Move 2381 | 91 745 445 138 889 73 Hop . | . . . . . . Pick Up 60 | 10 21 12 6 8 3 Fast Attach . | . . . . . . Attach 25 | 6 5 12 2 . . Detach 2 | . 2 . . . . Swap 25 | 2 12 4 1 5 1 Drop 27 | . 17 4 . 3 3 Fire 125 | 3 40 75 6 . 1 Melee 4 | . 4 . . . . Ram . | . . . . . . Kick 1 | . 1 . . . . Crush . | . . . . . . Escape Stasis . | . . . . . . Rewire . | . . . . . . Trap . | . . . . . . Miscellaneous . | . . . . . . Route ------- -11/Scrapyard -10/Materials (discovered 3 exits: *Mat x2 / *Min) -9/Materials (discovered 2 exits: [*Min x2]) -9/Mines -7/Zion -6/Proximity Caves History --------- Turn | Location | Event 2 | -11/Scrapyard | Met Revision 17 73 | -11/Scrapyard | Discovered new exit (range 8) 105 | -11/Scrapyard | Entered Materials 205 | -10/Materials | Discovered new exit (range 11) 240 | -10/Materials | Identified exit to Mines 323 | -10/Materials | Destroyed 8 combat bots 445 | -10/Materials | Discovered new exit (range 16) 595 | -10/Materials | Build established: Scavenger-Mutant 1024 | -10/Materials | Discovered new exit (range 16) 1064 | -10/Materials | Entered another Materials area 1064 | -9/Materials | Evolved 2 slots: Power x1, Weapon x1 1146 | -9/Materials | Discovered new exit (range 5) 1657 | -9/Materials | Build established: Gunner 1692 | -9/Materials | Core integrity fell below 50% 1780 | -9/Materials | Discovered new exit (range 15) 2005 | -9/Materials | Core integrity fell below 20% 2046 | -9/Materials | Lost 5 parts (2p3w) 2225 | -9/Materials | Repaired Imp. Heat Sink 2734 | -9/Materials | Entered Mines 2862 | -9/Mines | Received a Rocket Launcher from a helpful Derelict 2913 | -9/Mines | Found a damaged Exp. Sensor Array with a note attached 2917 | -9/Mines | Found Prototype Device 2982 | -9/Mines | Learned location of Zion (-7) 2982 | -9/Mines | Assisted by bots powering up and referring to "LRC-V3" 3038 | -9/Mines | A Derelict revealed a hidden shortcut to a safe place 3043 | -9/Mines | Entered Zion 3043 | -7/Zion | Accompanied by 3 allies 3630 | -7/Zion | Identified Exp. Sensor Array 3936 | -7/Zion | Build established: Skirmisher 4537 | -7/Zion | Given the Hacking Drone Bay 4541 | -7/Zion | Found Prototype Device 4542 | -7/Zion | Identified Hacking Drone Bay 4726 | -7/Zion | Discovered new exit (range 15) 4755 | -7/Zion | Entered Proximity Caves 4755 | -6/Proximity Caves | Accompanied by 3 allies 4841 | -6/Proximity Caves | Build established: Gunner 4902 | -6/Proximity Caves | Destroyed by S-27 Virus with Autogun Last Messages --------------- GOAL=ESCAPE Acquired Flexi-carbon Leg. Dropped Aluminum Leg. Searching scrap... Found Mak. Sword. Found Imp. Medium Armor Plating. Found Thermic Laser. Found Imp. Melee Analysis Suite. Found 24 Matter. Acquired 10 matter. Acquired Thermic Laser. Acquired Imp. Medium Armor Plating. Dropped Thermic Laser. Dropped Imp. Medium Armor Plating. S-27 Virus destroyed. [Achievement: First Step to Greatness] The achievement interface (ESC then open Records) offers an effective way to explore all of your earned achievements as well as seek out new goals for future runs. Map ----- +----------------------------------------------------+ | | | | | | | | | | | | | ?????????????????????????????????????????????????? | | ?????????????????????????????????????????????????? | | ?????????????????????????????????????????????????? | | ?????????????????????????????????????????????????? | | ?????????????????????????????????????????????????? | | ?????????????????????????????????????????????????? | | ?????????????????????????????????????????????????? | | ?????????????????????????????????????????????????? | | ?????????????????????????????????????????????????? | | ???????????????###???????????????????????????????? | | ???????????????? ???????????????????????????????? | | ???????????????? #??????????????????????????????? | | ????????????????# ??????????????????????????????? | | ???#????????????# #?????????????????????????????? | | ???# ???????????? #???????#####?????????????????? | | ??## ????????????# #??????# ##????????????????? | | ?? ????????????# ####??? #????????????????? | | ??? #???????????# #### ?????????????????? | | ???# ???????????# ## #????????????????????? | | ???# #??????????# @ ## #????????????????? | | ???# ??????????# g g #?????????????????? | | ###?# ????????### ##?????????????????? | | ## ##?????## #######g= #??????????????????? | | ####### ##??????#ss #?????????????????? | | ## # ##????????#s #????????????????? | | # #### ######?????????? #???????????????? | | # ## ##???????????????? ??????????????? | | ##????????????????? ?????????????? | | ## ##??????????????????? #????????????? | | ???## ##????????????????????# ##????????????? | | ????# ##??????????????????????# #?????????????? | | ????# #???????????????????????? ??????????????? | | ##### #?????????????????????????????????????????? | | #?????????????????????????????????????????? | | ## ## #?????????????????????????????????????????? | | ?# ## #?????????????????????????????????????????? | | ?# ## #?????????????????????????????????????????? | | ?# ## #?????????????????????????????????????????? | | ? ## #?????????????????????????????????????????? | | ? #?????????????????????????????????????????? | | ? #?????????????????????????????????????????? | | ? ?????????????????????????????????????????? | | ? ?????????????????????????????????????????? | | ? ?????????????????????????????????????????? | +----------------------------------------------------+ Best States ------------- Heat Dissipation 42 Energy Generation 19 Energy Capacity 400 Matter Stores 300 Matter Capacity 300 Sight Range 16 Robot Scan Range 20 Terrain Scan Density 10 ECM Strength 1 Evasion (%) 62 Item Schematics ----------------- Slug Cannon | -7/Zion | Free Riot Gun | -7/Zion | Free Hvy. Riot Gun | -7/Zion | Free Battle Rifle | -7/Zion | Free Barrage Gun | -7/Zion | Free Plasma Flamer | -7/Zion | Free Robot Schematics ------------------ None Fabricated ------------ Nothing Alien Tech Used ----------------- None Achievements -------------- Crack Shot First Step to Greatness It Was An Accident, I Swear Loot Pinata Part-time Mechanic Risk Taker Robot Respite Storm Trooper Tourist Uninvited Guest Challenges ------------ None Game ------ Seed SapperGrenadeShockpuncher Manual? 0 Play Time 01:11:06 Cumulative 1.1 hours Start 2024.04.06 @ 12:12:32 End 2024.04.06 @ 13:43:52 Sessions 3 Manual Loads 0 Difficulty Rogue Special Mode None Game No. 1 Rogue 1 Adventurer 0 Explorer 0 Win Type - Total 0 Types 0/0/0/0/0/0/0/0/0 Lore% 1 Gallery% 3 Achievement% 3 Wizard Run 0 Options --------- Layout 1 ASCII 0 Keyboard 0 Movement Numpad Keybinds 0 Fullscreen 2 Font 48/Smallcaps Map View 50x35 Zoom Use 2% Tactical HUD 0 Map Filters NONE Filters NONE Steam 1 RUN: 1ee1cbbe-5f7f-4652-8714-79aad6c0d606